[Event "Titled Tuesday Blitz March 01 Late 2022"]
[White "Mirzoev, Azer"]
[Black "Tomb, Maroun"]
[WhiteFideId "13400304"]
[BlackFideId "5300398"]
[WhiteElo "2525"]
[BlackElo "2565"]
[Result "1/2-1/2"]
[Round "07"]
[TimeControl "180+1"]
[Date "2022.03.01"]
[WhiteClock "0:00:23"]
[BlackClock "0:00:19"]

1. c4 {[%clk 0:03:00]}  d6 {[%clk 0:02:59]} 2. Nc3 {[%clk 0:03:00]}  Nd7 {[%clk 0:03:00]} 3. g3 {[%clk 0:03:00]}  Ngf6 {[%clk 0:03:01]} 4. Bg2 {[%clk 0:03:01]}  e5 {[%clk 0:03:02]} 5. d3 {[%clk 0:03:00]}  c6 {[%clk 0:03:02]} 6. Rb1 {[%clk 0:02:56]}  a5 {[%clk 0:03:02]} 7. a3 {[%clk 0:02:55]}  Be7 {[%clk 0:03:02]} 8. b4 {[%clk 0:02:56]}  axb4 {[%clk 0:03:03]} 9. axb4 {[%clk 0:02:56]}  O-O {[%clk 0:02:55]} 10. b5 {[%clk 0:02:56]}  Qc7 {[%clk 0:02:33]} 11. Nh3 {[%clk 0:02:52]}  Nc5 {[%clk 0:02:32]} 12. O-O {[%clk 0:02:50]}  h6 {[%clk 0:02:30]} 13. Be3 {[%clk 0:02:39]}  Be6 {[%clk 0:02:22]} 14. Bxc5 {[%clk 0:02:36]}  dxc5 {[%clk 0:02:23]} 15. bxc6 {[%clk 0:02:36]}  bxc6 {[%clk 0:02:21]} 16. Kh1 {[%clk 0:02:36]}  Ra3 {[%clk 0:02:19]} 17. Qc1 {[%clk 0:02:34]}  Rfa8 {[%clk 0:02:18]} 18. Ng1 {[%clk 0:02:34]}  Qa5 {[%clk 0:02:14]} 19. Nd1 {[%clk 0:02:23]}  e4 {[%clk 0:02:12]} 20. dxe4 {[%clk 0:02:18]}  Nd7 {[%clk 0:01:54]} 21. f4 {[%clk 0:02:15]}  Nb6 {[%clk 0:01:48]} 22. f5 {[%clk 0:02:04]}  Bxc4 {[%clk 0:01:42]} 23. Rxb6 {[%clk 0:02:02]}  Qxb6 {[%clk 0:01:42]} 24. Qxc4 {[%clk 0:02:02]}  R8a4 {[%clk 0:01:34]} 25. Qc2 {[%clk 0:01:42]}  Ra2 {[%clk 0:01:26]} 26. Qd3 {[%clk 0:01:34]}  c4 {[%clk 0:01:23]} 27. Qf3 {[%clk 0:01:33]}  Bf6 {[%clk 0:01:20]} 28. Qf4 {[%clk 0:01:28]}  c3 {[%clk 0:01:17]} 29. Nxc3 {[%clk 0:00:39]}  Bxc3 {[%clk 0:01:15]} 30. Qd6 {[%clk 0:00:34]}  Rd2 {[%clk 0:00:53]} 31. Qe7 {[%clk 0:00:33]}  Qd8 {[%clk 0:00:41]} 32. Qc5 {[%clk 0:00:32]}  Qd4 {[%clk 0:00:27]} 33. Qxc6 {[%clk 0:00:31]}  Ra1 {[%clk 0:00:27]} 34. Rxa1 {[%clk 0:00:28]}  Bxa1 {[%clk 0:00:28]} 35. Qe8+ {[%clk 0:00:22]}  Kh7 {[%clk 0:00:26]} 36. Qxf7 {[%clk 0:00:22]}  Rd1 {[%clk 0:00:18]} 37. Qg6+ {[%clk 0:00:22]}  Kh8 {[%clk 0:00:18]} 38. Qe8+ {[%clk 0:00:23]}  Kh7 {[%clk 0:00:18]} 39. Qg6+ {[%clk 0:00:23]}  Kh8 {[%clk 0:00:19]} 40. Qe8+ {[%clk 0:00:24]}  Kh7 {[%clk 0:00:19]} 41. Qg6+ {[%clk 0:00:23]} 1/2-1/2


[Site "https://www.chess.com"]

[Event "Titled Tuesday Blitz March 01 Late 2022"]
[White "Miszler, Levente"]
[Black "Ibadov, Dashgyn"]
[WhiteFideId "763276"]
[BlackFideId "24107514"]
[WhiteElo "2395"]
[BlackElo "2544"]
[Result "0-1"]
[Round "07"]
[TimeControl "180+1"]
[Date "2022.03.02"]
[WhiteClock "0:00:07"]
[BlackClock "0:01:11"]

1. Nf3 {[%clk 0:02:52]}  d5 {[%clk 0:02:58]} 2. e3 {[%clk 0:02:50]}  Nf6 {[%clk 0:02:59]} 3. b3 {[%clk 0:02:49]}  c5 {[%clk 0:02:55]} 4. Bb2 {[%clk 0:02:49]}  Nc6 {[%clk 0:02:56]} 5. d4 {[%clk 0:02:44]}  Bf5 {[%clk 0:02:53]} 6. dxc5 {[%clk 0:02:41]}  e6 {[%clk 0:02:53]} 7. Nd4 {[%clk 0:02:38]}  Bg6 {[%clk 0:02:53]} 8. Bb5 {[%clk 0:02:34]}  Rc8 {[%clk 0:02:53]} 9. Nxc6 {[%clk 0:02:21]}  bxc6 {[%clk 0:02:53]} 10. Ba6 {[%clk 0:02:22]}  Rb8 {[%clk 0:02:53]} 11. O-O {[%clk 0:02:11]}  Bxc5 {[%clk 0:02:53]} 12. Nd2 {[%clk 0:02:08]}  O-O {[%clk 0:02:52]} 13. Nf3 {[%clk 0:02:08]}  Bd6 {[%clk 0:02:48]} 14. Bd3 {[%clk 0:02:07]}  c5 {[%clk 0:02:47]} 15. Bxg6 {[%clk 0:02:06]}  hxg6 {[%clk 0:02:48]} 16. Be5 {[%clk 0:02:03]}  Bxe5 {[%clk 0:02:43]} 17. Nxe5 {[%clk 0:02:04]}  Qc7 {[%clk 0:02:44]} 18. f4 {[%clk 0:01:56]}  Rfd8 {[%clk 0:02:26]} 19. Qe2 {[%clk 0:01:37]}  c4 {[%clk 0:02:16]} 20. Rfd1 {[%clk 0:01:27]}  Rdc8 {[%clk 0:02:13]} 21. Nf3 {[%clk 0:01:15]}  Ne4 {[%clk 0:02:11]} 22. Nd4 {[%clk 0:00:56]}  Nc3 {[%clk 0:02:10]} 23. Qf3 {[%clk 0:00:34]}  Nxd1 {[%clk 0:02:09]} 24. Rxd1 {[%clk 0:00:34]}  cxb3 {[%clk 0:02:07]} 25. axb3 {[%clk 0:00:32]}  a5 {[%clk 0:02:00]} 26. Ra1 {[%clk 0:00:25]}  Qb6 {[%clk 0:01:57]} 27. h4 {[%clk 0:00:22]}  Rc3 {[%clk 0:01:51]} 28. h5 {[%clk 0:00:20]}  gxh5 {[%clk 0:01:51]} 29. Qxh5 {[%clk 0:00:19]}  Rxe3 {[%clk 0:01:49]} 30. Rd1 {[%clk 0:00:17]}  Re4 {[%clk 0:01:47]} 31. c3 {[%clk 0:00:17]}  Rc8 {[%clk 0:01:46]} 32. Qh3 {[%clk 0:00:12]}  a4 {[%clk 0:01:35]} 33. Kf2 {[%clk 0:00:11]}  axb3 {[%clk 0:01:35]} 34. Rh1 {[%clk 0:00:11]}  Rxf4+ {[%clk 0:01:14]} 35. Ke3 {[%clk 0:00:08]}  Rxc3+ {[%clk 0:01:13]} 36. Kxf4 {[%clk 0:00:07]}  Qxd4+ {[%clk 0:01:12]} 37. Kg5 {[%clk 0:00:07]}  Rxh3 {[%clk 0:01:11]} 0-1


[Site "https://www.chess.com"]

[Event "Titled Tuesday Blitz March 01 Late 2022"]
[White "Mogranzini, Roberto"]
[Black "Perez Torres, Nabi Isaias"]
[WhiteFideId "810894"]
[BlackFideId "5120373"]
[WhiteElo "2469"]
[BlackElo "1755"]
[Result "1-0"]
[Round "07"]
[TimeControl "180+1"]
[Date "2022.03.02"]
[WhiteClock "0:01:38"]
[BlackClock "0:00:06"]

1. e4 {[%clk 0:03:00]}  c5 {[%clk 0:02:59]} 2. Nf3 {[%clk 0:03:00]}  d6 {[%clk 0:03:00]} 3. Nc3 {[%clk 0:03:01]}  Nf6 {[%clk 0:03:00]} 4. e5 {[%clk 0:03:01]}  dxe5 {[%clk 0:02:59]} 5. Nxe5 {[%clk 0:03:02]}  a6 {[%clk 0:02:50]} 6. a4 {[%clk 0:03:02]}  e6 {[%clk 0:02:49]} 7. g3 {[%clk 0:03:01]}  Be7 {[%clk 0:02:47]} 8. Bg2 {[%clk 0:03:01]}  O-O {[%clk 0:02:48]} 9. O-O {[%clk 0:03:01]}  Nbd7 {[%clk 0:02:44]} 10. Nc4 {[%clk 0:03:02]}  Nb6 {[%clk 0:02:32]} 11. b3 {[%clk 0:03:01]}  Nxc4 {[%clk 0:02:27]} 12. bxc4 {[%clk 0:03:02]}  Qc7 {[%clk 0:02:24]} 13. d3 {[%clk 0:02:58]}  Bd7 {[%clk 0:02:22]} 14. Bf4 {[%clk 0:02:55]}  Qc8 {[%clk 0:01:50]} 15. a5 {[%clk 0:02:48]}  Bc6 {[%clk 0:01:45]} 16. Qe2 {[%clk 0:02:44]}  Rd8 {[%clk 0:01:23]} 17. Rfb1 {[%clk 0:02:43]}  Rd7 {[%clk 0:01:18]} 18. Na4 {[%clk 0:02:40]}  Bd8 {[%clk 0:01:15]} 19. Nxc5 {[%clk 0:02:30]}  Bxg2 {[%clk 0:00:57]} 20. Nxd7 {[%clk 0:02:28]}  Bh3 {[%clk 0:00:49]} 21. Ne5 {[%clk 0:02:20]}  Nd7 {[%clk 0:00:40]} 22. Qf3 {[%clk 0:02:10]}  Ra7 {[%clk 0:00:10]} 23. Ra3 {[%clk 0:01:52]}  Nxe5 {[%clk 0:00:08]} 24. Bxe5 {[%clk 0:01:52]}  Bf5 {[%clk 0:00:08]} 25. Rab3 {[%clk 0:01:48]}  Bxa5 {[%clk 0:00:07]} 26. Rxb7 {[%clk 0:01:47]}  Rxb7 {[%clk 0:00:06]} 27. Rxb7 {[%clk 0:01:38]} 1-0


[Site "https://www.chess.com"]

[Event "Titled Tuesday Blitz March 01 Late 2022"]
[White "Muradli, Mahammad"]
[Black "Domingo Nunez, Alejandro"]
[WhiteFideId "13409301"]
[BlackFideId "22245561"]
[WhiteElo "2645"]
[BlackElo "2215"]
[Result "0-1"]
[Round "07"]
[TimeControl "180+1"]
[Date "2022.03.01"]
[WhiteClock "0:00:03"]
[BlackClock "0:00:09"]

1. Nf3 {[%clk 0:03:00]}  g6 {[%clk 0:02:50]} 2. g3 {[%clk 0:03:00]}  Bg7 {[%clk 0:02:50]} 3. Bg2 {[%clk 0:03:01]}  c5 {[%clk 0:02:49]} 4. O-O {[%clk 0:03:01]}  Nc6 {[%clk 0:02:50]} 5. d3 {[%clk 0:03:01]}  d6 {[%clk 0:02:46]} 6. c4 {[%clk 0:03:00]}  e6 {[%clk 0:02:46]} 7. Nc3 {[%clk 0:03:01]}  Nge7 {[%clk 0:02:46]} 8. Rb1 {[%clk 0:03:01]}  O-O {[%clk 0:02:46]} 9. a3 {[%clk 0:03:01]}  b6 {[%clk 0:02:46]} 10. Bd2 {[%clk 0:03:01]}  Bb7 {[%clk 0:02:47]} 11. b4 {[%clk 0:03:02]}  Qd7 {[%clk 0:02:47]} 12. e3 {[%clk 0:02:59]}  Rac8 {[%clk 0:02:46]} 13. Qe2 {[%clk 0:02:58]}  h6 {[%clk 0:02:44]} 14. Rfc1 {[%clk 0:02:58]}  g5 {[%clk 0:02:44]} 15. h4 {[%clk 0:02:55]}  g4 {[%clk 0:02:41]} 16. Nh2 {[%clk 0:02:55]}  h5 {[%clk 0:02:41]} 17. Ne4 {[%clk 0:02:55]}  Ne5 {[%clk 0:02:33]} 18. bxc5 {[%clk 0:02:38]}  dxc5 {[%clk 0:02:31]} 19. Bc3 {[%clk 0:01:52]}  Qxd3 {[%clk 0:02:09]} 20. Qxd3 {[%clk 0:01:52]}  Nxd3 {[%clk 0:02:10]} 21. Rd1 {[%clk 0:01:40]}  Bxc3 {[%clk 0:01:16]} 22. Rxd3 {[%clk 0:01:39]}  Be5 {[%clk 0:01:07]} 23. Rd7 {[%clk 0:01:38]}  Bxe4 {[%clk 0:01:07]} 24. Bxe4 {[%clk 0:01:39]}  Rc7 {[%clk 0:01:08]} 25. Rbd1 {[%clk 0:01:37]}  Rfc8 {[%clk 0:01:04]} 26. R7d2 {[%clk 0:01:20]}  Kg7 {[%clk 0:00:55]} 27. Kg2 {[%clk 0:01:15]}  Nc6 {[%clk 0:00:46]} 28. f3 {[%clk 0:01:13]}  Na5 {[%clk 0:00:39]} 29. Rc2 {[%clk 0:01:10]}  f5 {[%clk 0:00:37]} 30. Bd3 {[%clk 0:01:08]}  Rd7 {[%clk 0:00:36]} 31. Be2 {[%clk 0:00:49]}  Rxd1 {[%clk 0:00:35]} 32. Bxd1 {[%clk 0:00:50]}  Rd8 {[%clk 0:00:36]} 33. Be2 {[%clk 0:00:50]}  Nc6 {[%clk 0:00:25]} 34. f4 {[%clk 0:00:44]}  Bf6 {[%clk 0:00:25]} 35. Nf1 {[%clk 0:00:44]}  e5 {[%clk 0:00:21]} 36. fxe5 {[%clk 0:00:37]}  Bxe5 {[%clk 0:00:19]} 37. Nd2 {[%clk 0:00:31]}  Na5 {[%clk 0:00:20]} 38. Kf2 {[%clk 0:00:28]}  Kf6 {[%clk 0:00:19]} 39. Bf1 {[%clk 0:00:16]}  Bc7 {[%clk 0:00:11]} 40. Bg2 {[%clk 0:00:16]}  Rd3 {[%clk 0:00:10]} 41. Ra2 {[%clk 0:00:11]}  Be5 {[%clk 0:00:10]} 42. Ke2 {[%clk 0:00:06]}  Rc3 {[%clk 0:00:10]} 43. Bd5 {[%clk 0:00:06]}  Bxg3 {[%clk 0:00:10]} 44. e4 {[%clk 0:00:06]}  f4 {[%clk 0:00:10]} 45. Kd1 {[%clk 0:00:02]}  f3 {[%clk 0:00:09]} 46. Ra1 {[%clk 0:00:02]}  Rd3 {[%clk 0:00:08]} 47. Kc2 {[%clk 0:00:02]}  Rxd2+ {[%clk 0:00:09]} 48. Kxd2 {[%clk 0:00:03]}  Nb3+ {[%clk 0:00:09]} 0-1


[Site "https://www.chess.com"]

[Event "Titled Tuesday Blitz March 01 Late 2022"]
[White "Nakamura, Hikaru"]
[Black "Zubritskiy, Artyom"]
[WhiteFideId "2016192"]
[BlackFideId "4181247"]
[WhiteElo "2850"]
[BlackElo "2459"]
[Result "1-0"]
[Round "07"]
[TimeControl "180+1"]
[Date "2022.03.01"]
[WhiteClock "0:01:30"]
[BlackClock "0:00:06"]

1. Nf3 {[%clk 0:03:00]}  f5 {[%clk 0:02:25]} 2. d3 {[%clk 0:02:53]}  d6 {[%clk 0:02:25]} 3. e4 {[%clk 0:02:53]}  e5 {[%clk 0:02:23]} 4. Nc3 {[%clk 0:02:50]}  c5 {[%clk 0:02:23]} 5. Nd2 {[%clk 0:02:47]}  Nc6 {[%clk 0:02:17]} 6. g3 {[%clk 0:02:47]}  Nf6 {[%clk 0:01:59]} 7. Bg2 {[%clk 0:02:46]}  Be7 {[%clk 0:01:59]} 8. O-O {[%clk 0:02:45]}  O-O {[%clk 0:01:59]} 9. exf5 {[%clk 0:02:45]}  Bxf5 {[%clk 0:01:59]} 10. Nde4 {[%clk 0:02:45]}  Qd7 {[%clk 0:01:51]} 11. Bg5 {[%clk 0:02:26]}  Nxe4 {[%clk 0:01:46]} 12. dxe4 {[%clk 0:02:27]}  Bg4 {[%clk 0:01:41]} 13. Qd5+ {[%clk 0:02:25]}  Be6 {[%clk 0:01:40]} 14. Bh3 {[%clk 0:02:15]}  Nd4 {[%clk 0:01:00]} 15. Bxe6+ {[%clk 0:02:12]}  Nxe6 {[%clk 0:01:01]} 16. Be3 {[%clk 0:02:08]}  Kh8 {[%clk 0:00:59]} 17. Qd1 {[%clk 0:02:00]}  Bg5 {[%clk 0:00:58]} 18. Nd5 {[%clk 0:01:50]}  Bxe3 {[%clk 0:00:54]} 19. Nxe3 {[%clk 0:01:51]}  Nd4 {[%clk 0:00:45]} 20. f3 {[%clk 0:01:50]}  Rf6 {[%clk 0:00:37]} 21. c3 {[%clk 0:01:50]}  Nc6 {[%clk 0:00:35]} 22. Qe2 {[%clk 0:01:48]}  Raf8 {[%clk 0:00:34]} 23. Rad1 {[%clk 0:01:48]}  Qf7 {[%clk 0:00:34]} 24. b3 {[%clk 0:01:44]}  Ne7 {[%clk 0:00:29]} 25. Kg2 {[%clk 0:01:40]}  g5 {[%clk 0:00:15]} 26. Nc4 {[%clk 0:01:34]}  Nc8 {[%clk 0:00:15]} 27. Rd3 {[%clk 0:01:30]}  g4 {[%clk 0:00:11]} 28. Nd2 {[%clk 0:01:30]}  Ne7 {[%clk 0:00:08]} 29. fxg4 {[%clk 0:01:30]}  Rxf1 {[%clk 0:00:07]} 30. Nxf1 {[%clk 0:01:31]}  Qe6 {[%clk 0:00:06]} 31. Ne3 {[%clk 0:01:30]} 1-0


[Site "https://www.chess.com"]

[Event "Titled Tuesday Blitz March 01 Late 2022"]
[White "Nilsen, Tobias Lang"]
[Black "Karttunen, Mika"]
[WhiteFideId "1521624"]
[BlackFideId "502081"]
[WhiteElo "2436"]
[BlackElo "2598"]
[Result "0-1"]
[Round "07"]
[TimeControl "180+1"]
[Date "2022.03.02"]
[WhiteClock "0:00:57"]
[BlackClock "0:00:44"]

1. f4 {[%clk 0:03:00]}  d5 {[%clk 0:02:57]} 2. f5 {[%clk 0:03:00]}  Bxf5 {[%clk 0:02:56]} 3. Nf3 {[%clk 0:03:00]}  Nf6 {[%clk 0:02:55]} 4. e3 {[%clk 0:02:59]}  Nbd7 {[%clk 0:02:52]} 5. Be2 {[%clk 0:02:59]}  e6 {[%clk 0:02:52]} 6. O-O {[%clk 0:02:59]}  h6 {[%clk 0:02:52]} 7. Nc3 {[%clk 0:02:59]}  c6 {[%clk 0:02:52]} 8. d3 {[%clk 0:03:00]}  Bh7 {[%clk 0:02:51]} 9. Qe1 {[%clk 0:02:59]}  Bd6 {[%clk 0:02:51]} 10. Bd2 {[%clk 0:02:57]}  Qc7 {[%clk 0:02:50]} 11. Rd1 {[%clk 0:02:57]}  O-O-O {[%clk 0:02:49]} 12. b4 {[%clk 0:02:56]}  Ng4 {[%clk 0:02:44]} 13. h3 {[%clk 0:02:54]}  Bg3 {[%clk 0:02:40]} 14. hxg4 {[%clk 0:02:50]}  Bxe1 {[%clk 0:02:39]} 15. Bxe1 {[%clk 0:02:48]}  Nf6 {[%clk 0:02:39]} 16. Nd4 {[%clk 0:02:47]}  Kb8 {[%clk 0:02:31]} 17. a4 {[%clk 0:02:43]}  Ka8 {[%clk 0:02:31]} 18. a5 {[%clk 0:02:43]}  e5 {[%clk 0:02:25]} 19. Bg3 {[%clk 0:02:42]}  Qe7 {[%clk 0:02:24]} 20. Na4 {[%clk 0:02:40]}  Rhe8 {[%clk 0:02:01]} 21. Nf3 {[%clk 0:02:38]}  Nxg4 {[%clk 0:01:58]} 22. d4 {[%clk 0:02:37]}  f6 {[%clk 0:01:52]} 23. Nxe5 {[%clk 0:02:26]}  Nxe5 {[%clk 0:01:50]} 24. dxe5 {[%clk 0:02:26]}  fxe5 {[%clk 0:01:50]} 25. Ra1 {[%clk 0:02:22]}  Kb8 {[%clk 0:01:37]} 26. b5 {[%clk 0:02:12]}  c5 {[%clk 0:01:30]} 27. c4 {[%clk 0:02:10]}  dxc4 {[%clk 0:01:28]} 28. a6 {[%clk 0:02:06]}  Bd3 {[%clk 0:01:20]} 29. Bf3 {[%clk 0:01:45]}  Bxf1 {[%clk 0:01:16]} 30. Rxf1 {[%clk 0:01:43]}  Rf8 {[%clk 0:01:09]} 31. Bxb7 {[%clk 0:01:23]}  Rxf1+ {[%clk 0:01:07]} 32. Kxf1 {[%clk 0:01:24]}  Rd1+ {[%clk 0:00:56]} 33. Ke2 {[%clk 0:01:17]}  Ra1 {[%clk 0:00:52]} 34. Nc3 {[%clk 0:01:15]}  Qg5 {[%clk 0:00:46]} 35. Ne4 {[%clk 0:01:05]}  Qg4+ {[%clk 0:00:47]} 36. Kf2 {[%clk 0:01:00]}  Qf5+ {[%clk 0:00:46]} 37. Ke2 {[%clk 0:00:56]}  Qf1+ {[%clk 0:00:46]} 38. Kd2 {[%clk 0:00:57]}  Qd3# {[%clk 0:00:44]} 0-1


[Site "https://www.chess.com"]

[Event "Titled Tuesday Blitz March 01 Late 2022"]
[White "Okike, David"]
[Black "Aggelis, Nikolaos"]
[WhiteFideId "8500134"]
[BlackFideId "4213220"]
[WhiteElo "2232"]
[BlackElo "2154"]
[Result "0-1"]
[Round "07"]
[TimeControl "180+1"]
[Date "2022.03.02"]
[WhiteClock "0:01:49"]
[BlackClock "0:01:16"]

1. e4 {[%clk 0:03:00]}  c5 {[%clk 0:02:54]} 2. Nf3 {[%clk 0:02:59]}  e6 {[%clk 0:02:54]} 3. d4 {[%clk 0:02:59]}  cxd4 {[%clk 0:02:55]} 4. Nxd4 {[%clk 0:02:59]}  Nf6 {[%clk 0:02:55]} 5. Bd3 {[%clk 0:02:57]}  a6 {[%clk 0:02:53]} 6. f4 {[%clk 0:02:56]}  Qc7 {[%clk 0:02:51]} 7. Qe2 {[%clk 0:02:55]}  Nc6 {[%clk 0:02:48]} 8. Nb3 {[%clk 0:02:54]}  b5 {[%clk 0:02:43]} 9. Nc3 {[%clk 0:02:53]}  Bb7 {[%clk 0:02:42]} 10. e5 {[%clk 0:02:47]}  b4 {[%clk 0:02:28]} 11. exf6 {[%clk 0:02:39]}  bxc3 {[%clk 0:02:28]} 12. bxc3 {[%clk 0:02:39]}  gxf6 {[%clk 0:02:25]} 13. c4 {[%clk 0:02:38]}  Bb4+ {[%clk 0:02:08]} 14. Kf1 {[%clk 0:02:36]}  Rg8 {[%clk 0:02:06]} 15. a3 {[%clk 0:02:35]}  Bd6 {[%clk 0:02:07]} 16. c5 {[%clk 0:02:30]}  Bxf4 {[%clk 0:02:05]} 17. Qf2 {[%clk 0:02:29]}  Bxc1 {[%clk 0:01:49]} 18. Rxc1 {[%clk 0:02:28]}  Ne5 {[%clk 0:01:50]} 19. Bxh7 {[%clk 0:02:26]}  Rxg2 {[%clk 0:01:47]} 20. Qxg2 {[%clk 0:02:26]}  Bxg2+ {[%clk 0:01:47]} 21. Kxg2 {[%clk 0:02:27]}  Ke7 {[%clk 0:01:43]} 22. Be4 {[%clk 0:02:22]}  Rg8+ {[%clk 0:01:41]} 23. Kf2 {[%clk 0:02:21]}  f5 {[%clk 0:01:37]} 24. Bg2 {[%clk 0:02:11]}  Ng4+ {[%clk 0:01:35]} 25. Ke2 {[%clk 0:02:07]}  Qe5+ {[%clk 0:01:34]} 26. Kd1 {[%clk 0:01:55]}  Nf2+ {[%clk 0:01:24]} 27. Kd2 {[%clk 0:01:54]}  Rxg2 {[%clk 0:01:24]} 28. Rhe1 {[%clk 0:01:53]}  Ne4+ {[%clk 0:01:20]} 29. Ke3 {[%clk 0:01:50]}  Qc3+ {[%clk 0:01:16]} 30. Kf4 {[%clk 0:01:49]}  Rf2# {[%clk 0:01:16]} 0-1


[Site "https://www.chess.com"]

[Event "Titled Tuesday Blitz March 01 Late 2022"]
[White "P., Komal Kishore"]
[Black "Debray, Christopher"]
[WhiteFideId "5016703"]
[BlackFideId "630810"]
[WhiteElo "2085"]
[BlackElo "2369"]
[Result "1-0"]
[Round "07"]
[TimeControl "180+1"]
[Date "2022.03.02"]
[WhiteClock "0:00:22"]
[BlackClock "0:00:01"]

1. e4 {[%clk 0:02:45]}  e6 {[%clk 0:02:55]} 2. d4 {[%clk 0:02:44]}  d5 {[%clk 0:02:54]} 3. Nd2 {[%clk 0:02:43]}  c5 {[%clk 0:02:50]} 4. exd5 {[%clk 0:02:42]}  Qxd5 {[%clk 0:02:47]} 5. Ngf3 {[%clk 0:02:41]}  cxd4 {[%clk 0:02:35]} 6. Bc4 {[%clk 0:02:41]}  Qd7 {[%clk 0:02:34]} 7. O-O {[%clk 0:02:36]}  Nc6 {[%clk 0:02:27]} 8. Re1 {[%clk 0:02:36]}  Nf6 {[%clk 0:02:18]} 9. Nb3 {[%clk 0:02:35]}  Be7 {[%clk 0:02:17]} 10. Nbxd4 {[%clk 0:02:33]}  Nxd4 {[%clk 0:02:18]} 11. Nxd4 {[%clk 0:02:32]}  O-O {[%clk 0:02:12]} 12. Bg5 {[%clk 0:02:31]}  Qc7 {[%clk 0:01:58]} 13. Bd3 {[%clk 0:02:28]}  b6 {[%clk 0:01:51]} 14. c3 {[%clk 0:02:12]}  Bb7 {[%clk 0:01:50]} 15. Bc2 {[%clk 0:02:09]}  Rfd8 {[%clk 0:01:26]} 16. Qd3 {[%clk 0:02:06]}  g6 {[%clk 0:01:26]} 17. Qh3 {[%clk 0:01:58]}  Rxd4 {[%clk 0:01:22]} 18. Rxe6 {[%clk 0:01:33]}  fxe6 {[%clk 0:01:09]} 19. Qxe6+ {[%clk 0:01:32]}  Kg7 {[%clk 0:01:07]} 20. cxd4 {[%clk 0:01:32]}  Bd8 {[%clk 0:00:28]} 21. Bb3 {[%clk 0:01:30]}  Qe7 {[%clk 0:00:20]} 22. Bxf6+ {[%clk 0:01:25]}  Qxf6 {[%clk 0:00:20]} 23. Qd7+ {[%clk 0:01:24]}  Qe7 {[%clk 0:00:19]} 24. Qa4 {[%clk 0:00:59]}  Bc7 {[%clk 0:00:19]} 25. d5 {[%clk 0:00:54]}  Rd8 {[%clk 0:00:15]} 26. Qxa7 {[%clk 0:00:50]}  Bxd5 {[%clk 0:00:09]} 27. Qa4 {[%clk 0:00:43]}  Bxb3 {[%clk 0:00:06]} 28. Qxb3 {[%clk 0:00:39]}  Qe5 {[%clk 0:00:05]} 29. g3 {[%clk 0:00:38]}  Rd2 {[%clk 0:00:05]} 30. Rc1 {[%clk 0:00:31]}  h5 {[%clk 0:00:01]} 31. h4 {[%clk 0:00:22]} 1-0


[Site "https://www.chess.com"]

[Event "Titled Tuesday Blitz March 01 Late 2022"]
[White "Pace, Christopher"]
[Black "Celestino, Rafael Teixeira"]
[WhiteFideId "2610167"]
[BlackFideId "2108925"]
[WhiteElo "2210"]
[BlackElo "2260"]
[Result "1-0"]
[Round "07"]
[TimeControl "180+1"]
[Date "2022.03.02"]
[WhiteClock "0:00:15"]
[BlackClock "0:00:02"]

1. d4 {[%clk 0:03:00]}  Nf6 {[%clk 0:02:58]} 2. Nf3 {[%clk 0:02:58]}  e6 {[%clk 0:02:58]} 3. c4 {[%clk 0:02:57]}  d5 {[%clk 0:02:57]} 4. Nc3 {[%clk 0:02:55]}  Bb4 {[%clk 0:02:57]} 5. Bg5 {[%clk 0:02:44]}  h6 {[%clk 0:02:54]} 6. Bxf6 {[%clk 0:02:42]}  Qxf6 {[%clk 0:02:55]} 7. cxd5 {[%clk 0:02:35]}  exd5 {[%clk 0:02:56]} 8. e3 {[%clk 0:02:36]}  O-O {[%clk 0:02:54]} 9. Rc1 {[%clk 0:02:33]}  Bg4 {[%clk 0:02:54]} 10. Be2 {[%clk 0:02:32]}  Nd7 {[%clk 0:02:51]} 11. O-O {[%clk 0:02:31]}  c6 {[%clk 0:02:51]} 12. a3 {[%clk 0:02:28]}  Ba5 {[%clk 0:02:51]} 13. Ne5 {[%clk 0:01:20]}  Bf5 {[%clk 0:02:03]} 14. f4 {[%clk 0:01:16]}  Qd6 {[%clk 0:01:57]} 15. Na4 {[%clk 0:00:39]}  f6 {[%clk 0:01:40]} 16. Nxd7 {[%clk 0:00:36]}  Bxd7 {[%clk 0:01:41]} 17. Nc5 {[%clk 0:00:33]}  Rab8 {[%clk 0:01:12]} 18. e4 {[%clk 0:00:27]}  dxe4 {[%clk 0:00:54]} 19. Nxe4 {[%clk 0:00:27]}  Qe7 {[%clk 0:00:52]} 20. Bd3 {[%clk 0:00:20]}  Bf5 {[%clk 0:00:45]} 21. Re1 {[%clk 0:00:16]}  Qd7 {[%clk 0:00:32]} 22. Nc5 {[%clk 0:00:15]}  Qxd4+ {[%clk 0:00:30]} 23. Kh1 {[%clk 0:00:15]}  Bxe1 {[%clk 0:00:11]} 24. Bc4+ {[%clk 0:00:14]}  Qxc4 {[%clk 0:00:07]} 25. Rxc4 {[%clk 0:00:15]}  Ba5 {[%clk 0:00:06]} 26. b4 {[%clk 0:00:12]}  Rbd8 {[%clk 0:00:06]} 27. Qf3 {[%clk 0:00:12]}  Bb6 {[%clk 0:00:06]} 28. g3 {[%clk 0:00:11]}  Rde8 {[%clk 0:00:06]} 29. Kg2 {[%clk 0:00:11]}  Bg6 {[%clk 0:00:06]} 30. f5 {[%clk 0:00:11]}  Bf7 {[%clk 0:00:06]} 31. Rd4 {[%clk 0:00:11]}  Rd8 {[%clk 0:00:05]} 32. Rxd8 {[%clk 0:00:11]}  Rxd8 {[%clk 0:00:06]} 33. Kh3 {[%clk 0:00:12]}  Bd5 {[%clk 0:00:06]} 34. Qg4 {[%clk 0:00:12]}  Bc7 {[%clk 0:00:06]} 35. Ne6 {[%clk 0:00:12]}  Bxe6 {[%clk 0:00:06]} 36. fxe6 {[%clk 0:00:13]}  Re8 {[%clk 0:00:07]} 37. b5 {[%clk 0:00:13]}  cxb5 {[%clk 0:00:06]} 38. Qf5 {[%clk 0:00:14]}  Be5 {[%clk 0:00:07]} 39. Qd3 {[%clk 0:00:13]}  Rxe6 {[%clk 0:00:06]} 40. Qd5 {[%clk 0:00:13]}  Kf7 {[%clk 0:00:06]} 41. Qxb7+ {[%clk 0:00:14]}  Re7 {[%clk 0:00:05]} 42. Qxb5 {[%clk 0:00:15]}  g5 {[%clk 0:00:05]} 43. Kg4 {[%clk 0:00:14]}  Kg6 {[%clk 0:00:05]} 44. Qd3+ {[%clk 0:00:14]}  Kg7 {[%clk 0:00:05]} 45. Kh5 {[%clk 0:00:15]}  Kf8 {[%clk 0:00:02]} 46. Qg6 {[%clk 0:00:15]}  Rg7 {[%clk 0:00:01]} 47. Qf5 {[%clk 0:00:16]}  Kg8 {[%clk 0:00:02]} 48. Kxh6 {[%clk 0:00:15]}  Rf7 {[%clk 0:00:02]} 49. Qg6+ {[%clk 0:00:15]}  Rg7 {[%clk 0:00:02]} 50. Qxg7# {[%clk 0:00:15]} 1-0


[Site "https://www.chess.com"]